fUST/lending_fUST_20250505
["ID","MTS","AMOUNT","RATE_DAILY","PERIOD"]
[359941284,1746442240885,-151.0,0.0003187,7]
[359941285,1746442240896,-225.777662,0.0003187,7]
[359941286,1746442240906,-151.0,0.0003187,7]
[359941287,1746442240915,-151.0,0.0003187,7]
[359941288,1746442240926,-182.23035355,0.0003187,7]
[359941289,1746442240937,-152.864391,0.0003187,7]
[359941290,1746442240949,-12607.13495863,0.0003187,7]
[359941291,1746442240959,-160.0,0.0003187,7]
[359941292,1746442240969,-421.83547488,0.0003187,7]
[359941293,1746442240979,-234.368266,0.0003187,7]
[359941294,1746442240989,-221.688833,0.0003187,2]
[359941295,1746442240998,-234.368266,0.0003187,7]
[359941296,1746442241008,-221.688833,0.0003187,2]
[359941297,1746442241018,-313.81875325,0.0003187,7]
[359941298,1746442241028,-151.0,0.0003187,7]
[359941299,1746442241039,-158.492429,0.0003187,7]
[359941300,1746442241049,-151.0,0.0003187,7]
[359941301,1746442241059,-151.0,0.0003187,7]
[359941302,1746442241069,-484.572747,0.0003187,7]
[359941303,1746442241079,-484.572747,0.0003187,7]
[359941304,1746442241089,-151.0,0.0003187,7]
[359941305,1746442241099,-151.0,0.0003187,7]
[359941306,1746442241109,-152.577132,0.0003187,7]
[359941307,1746442241119,-151.0,0.0003187,7]
[359941308,1746442241129,-151.0,0.0003187,7]
[359941309,1746442241139,-151.0,0.0003187,7]
[359941310,1746442241148,-151.0,0.0003187,7]
[359941311,1746442241158,-151.0,0.0003187,7]
[359941312,1746442241169,-13599.9939421,0.00031929,2]
[359941313,1746442241178,-7704.90186599,0.00031929,2]
[359941314,1746442241188,-395.71054485,0.00031988,2]
[359941315,1746442241197,-1342.0,0.00032,2]
[359941316,1746442241207,-2000.0,0.00032055,2]
[359941317,1746442241217,-1000.0,0.00032191,5]
[359941318,1746442241227,-1000.0,0.00032191,5]
[359941319,1746442241237,-500.0,0.00032191,5]
[359941320,1746442241247,-151.0,0.000324,15]
[359941321,1746442241256,-2362.82215666,0.00032465,2]
[359941322,1746442241266,-207.4,0.00032565,2]
[359941323,1746442241276,-197.05513197,0.00032565,2]
[359941324,1746442241285,-151.0,0.00032565,2]
[359941325,1746442241295,-200.00935554,0.00032603,7]
[359941326,1746442241305,-1625.97547773,0.00032758,2]
[359941327,1746442241315,-164.74195256,0.00032877,2]
[359941328,1746442241324,-1107.3,0.000329,30]
[359941329,1746442241334,-2218.96,0.000329,7]
[359941330,1746442241344,-6228.95,0.000329,30]
[359941331,1746442241354,-841.77443764,0.000329,7]
[359941332,1746442241364,-501.22,0.00033,7]
[359941333,1746442241375,-975.03627542,0.00033123,2]
[359941334,1746442241385,-151.0,0.00033124,14]
[359941335,1746442241395,-151.0,0.00033124,14]
[359941336,1746442241404,-3000.0,0.00033151,2]
[359941337,1746442241417,-352.300068,0.00033151,30]
[359941338,1746442241428,-1171.7319498,0.00033151,30]
[359941339,1746442241438,-473.262441,0.00033165,2]
[359941340,1746442241448,-151.0,0.00033176,14]
[359941341,1746442241459,-151.0,0.000333,13]
[359941342,1746442241469,-187.247802,0.00033435,2]
[359941343,1746442241479,-151.0,0.000336,15]
[359941344,1746442241488,-548.35017898,0.00033787,5]
[359941345,1746442241498,-2547.4908989,0.00033824,4]
[359941346,1746442241509,-160.0,0.00033918,3]
[359941347,1746442241518,-207.4,0.00033934,2]
[359941348,1746442241528,-151.0,0.00033934,2]
[359941349,1746442241538,-1001.29243734,0.0003399,15]
[359941350,1746442241548,-6228.95,0.00034,30]
[359941351,1746442241559,-182.23035355,0.00034,30]
[359941352,1746442241569,-160.0,0.00034,30]
[359941353,1746442241579,-421.83547488,0.00034,30]
[359941354,1746442241588,-151.0,0.00034,14]
[359941355,1746442241598,-151.0,0.00034,14]
[359941356,1746442241608,-151.0,0.00034,14]
[359941357,1746442241618,-1012.11058216,0.00034044,5]
[359941358,1746442241628,-1000.0,0.00034061,5]
[359941359,1746442241639,-13599.9939421,0.0003409,2]
[359941360,1746442241649,-7704.90186599,0.0003409,2]
[359941361,1746442241659,-1107.3,0.000341,30]
[359941362,1746442241669,-2218.96,0.000341,7]
[359941363,1746442241678,-500.0,0.00034177,60]
[359941364,1746442241689,-151.0,0.000342,17]
[359941365,1746442241699,-151.0,0.00034226,14]
[359941366,1746442241709,-151.0,0.00034236,14]
[359941367,1746442241719,-364.680102,0.00034236,14]
[359941368,1746442241728,-364.680102,0.00034236,14]
[359941369,1746442241738,-152.350443,0.00034236,14]
[359941370,1746442241749,-151.0,0.00034236,14]
[359941371,1746442241758,-3904.166782,0.00034236,2]
[359941372,1746442241768,-3904.166782,0.00034236,2]
[359941373,1746442241778,-151.0,0.00034236,14]
[359941374,1746442241788,-225.777662,0.00034236,14]
[359941375,1746442241797,-151.0,0.00034236,14]
[359941376,1746442241807,-151.0,0.00034236,14]
[359941377,1746442241817,-225.777662,0.00034236,14]
[359941378,1746442241827,-151.0,0.00034236,14]
[359941379,1746442241837,-152.155241,0.00034236,14]
[359941380,1746442241846,-234.368266,0.00034236,14]
[359941381,1746442241857,-221.688833,0.00034236,2]
[359941382,1746442241870,-234.368266,0.00034236,14]
[359941383,1746442241880,-221.688833,0.00034236,2]
[359941384,1746442241890,-151.0,0.00034236,14]
[359941385,1746442241899,-484.572747,0.00034236,14]
[359941386,1746442241911,-484.572747,0.00034236,14]
[359941387,1746442241921,-232.029026,0.00034236,14]
[359941388,1746442241931,-151.0,0.00034236,14]
[359941389,1746442241940,-151.0,0.00034236,14]
[359941390,1746442241950,-189.68115,0.00034247,120]
[359941391,1746442241959,-4000.0,0.00034247,2]
[359941392,1746442241969,-151.0,0.00034247,14]
[359941393,1746442241979,-151.0,0.00034247,14]
[359941394,1746442241989,-151.0,0.00034247,14]
[359941395,1746442241998,-151.0,0.00034247,14]
[359941396,1746442242008,-151.0,0.00034247,14]
[359941397,1746442242017,-151.0,0.00034247,14]
[359941398,1746442242026,-363.797151,0.00034247,14]
[359941399,1746442242036,-363.797151,0.00034247,14]
[359941400,1746442242045,-231.808025,0.00034247,14]
[359941401,1746442242054,-151.0,0.00034247,14]
[359941402,1746442242063,-151.0,0.00034247,14]
[359941403,1746442242073,-644.430046,0.00034247,14]
[359941404,1746442242082,-644.430046,0.00034247,14]
[359941405,1746442242092,-151.0,0.00034247,14]
[359941406,1746442242101,-151.0,0.00034247,14]
[359941407,1746442242110,-151.0,0.00034247,14]
[359941408,1746442242119,-151.0,0.00034247,14]
[359941409,1746442242128,-151.0,0.00034247,14]
[359941410,1746442242138,-151.0,0.00034247,14]
[359941411,1746442242147,-151.0,0.00034247,14]
[359941412,1746442242156,-151.0,0.00034247,14]
[359941413,1746442242165,-577.613265,0.00034362,2]
[359941414,1746442242174,-500.0,0.00034448,60]
[359941415,1746442242184,-151.628884,0.000345,14]
[359941416,1746442242193,-2751.911,0.000345,20]
[359941417,1746442242202,-500.0,0.00034573,60]
[359941418,1746442242212,-151.0,0.000348,10]
[359941419,1746442242221,-287.41466101,0.00034849,120]
[359941420,1746442242230,-500.0,0.00034866,60]
[359941421,1746442242240,-160.260638,0.00034888,2]
[359941422,1746442242249,-1625.97547773,0.0003489,2]
[359941423,1746442242259,-6228.95,0.000349,30]
[359941424,1746442242268,-151.0,0.000349,14]
[359941425,1746442242278,-154.525406,0.000349,14]
[359941426,1746442242288,-159.829157,0.0003496,14]
[359941427,1746442242298,-151.0,0.0003496,14]
[359941428,1746442242307,-151.0,0.00034962,14]
[359941429,1746442242317,-13599.9939421,0.00034963,2]
[359941430,1746442242327,-7704.90186599,0.00034963,2]
[359941431,1746442242337,-5000.0,0.00034965,2]
[359941432,1746442242347,-13599.9939421,0.0003497,2]
[359941433,1746442242541,-7704.90186599,0.0003497,2]
[359941434,1746442242552,-151.0,0.0003497,14]
[359941435,1746442242563,-151.0,0.0003497,14]
[359941436,1746442242574,-500.0,0.00034973,5]
[359941437,1746442242583,-500.0,0.00034973,5]
[359941438,1746442242593,-500.0,0.00034973,5]
[359941439,1746442242602,-2139.05955112,0.0003498,3]
[359941440,1746442242612,-52133.17,0.0003498,7]
[359941441,1746442242622,-151.0,0.0003498,14]
[359941442,1746442242632,-151.0,0.0003498,14]
[359941443,1746442242642,-151.0,0.0003498,14]
[359941444,1746442242652,-153.256057,0.0003498,14]
[359941445,1746442242663,-157.585503,0.0003498,14]
[359941446,1746442242672,-151.0,0.0003498,14]
[359941447,1746442242682,-176.250222,0.0003498,14]
[359941448,1746442242692,-151.0,0.0003498,14]
[359941449,1746442242702,-151.0,0.0003498,14]
[359941450,1746442242711,-151.0,0.0003498,14]
[359941451,1746442242721,-151.0,0.0003498,14]
[359941452,1746442242731,-151.0,0.0003498,14]
[359941453,1746442242740,-363.797151,0.0003498,14]
[359941454,1746442242749,-363.797151,0.0003498,14]
[359941455,1746442242759,-151.0,0.0003498,14]
[359941456,1746442242768,-231.808025,0.0003498,14]
[359941457,1746442242778,-151.628884,0.0003498,14]
[359941458,1746442242788,-151.0,0.0003498,14]
[359941459,1746442242797,-151.0,0.0003498,14]
[359941460,1746442242807,-644.430046,0.0003498,14]
[359941461,1746442242816,-644.430046,0.0003498,14]
[359941462,1746442242826,-151.0,0.0003498,14]
[359941463,1746442242836,-151.0,0.0003498,14]
[359941464,1746442242845,-247.754589,0.0003498,14]
[359941465,1746442242856,-153.443817,0.0003498,14]
[359941466,1746442242867,-151.0,0.0003498,14]
[359941467,1746442242877,-364.680102,0.0003498,14]
[359941468,1746442242887,-364.680102,0.0003498,14]
[359941469,1746442242895,-151.0,0.0003498,14]
[359941470,1746442242905,-151.0,0.0003498,14]
[359941471,1746442242917,-151.0,0.0003498,14]
[359941472,1746442242927,-151.0,0.0003498,14]
[359941473,1746442242937,-3904.166782,0.0003498,2]
[359941474,1746442242947,-3904.166782,0.0003498,2]
[359941475,1746442242957,-151.0,0.0003498,14]
[359941476,1746442242967,-225.777662,0.0003498,14]
[359941477,1746442242976,-200.337959,0.0003498,14]
[359941478,1746442242986,-151.0,0.0003498,14]
[359941479,1746442242995,-225.777662,0.0003498,14]
[359941480,1746442243005,-151.0,0.0003498,14]
[359941481,1746442243014,-234.368266,0.0003498,14]
[359941482,1746442243024,-221.688833,0.0003498,2]
[359941483,1746442243034,-234.368266,0.0003498,14]
[359941484,1746442243043,-221.688833,0.0003498,2]
[359941485,1746442243053,-151.0,0.0003498,14]
[359941486,1746442243063,-484.572747,0.0003498,14]
[359941487,1746442243072,-484.572747,0.0003498,14]
[359941488,1746442243082,-151.0,0.0003498,14]
[359941489,1746442243091,-151.0,0.0003498,14]
[359941490,1746442243100,-151.0,0.0003498,14]
[359941491,1746442243109,-160.579925,0.0003498,14]
[359941492,1746442243118,-50593.17422769,0.0003499,2]
[359941493,1746442243127,-27199.9878841,0.0003499,2]
[359941494,1746442243137,-15409.803732,0.0003499,2]
[359941495,1746442243146,-164.740979,0.0003499,14]
[359941496,1746442243157,-151.0,0.0003499,14]
[359941497,1746442243168,-3187.69,0.00035,120]
[359941499,1746442243178,-199.31175,0.00035,5]
[359941500,1746442243188,-57165.60449222,0.00035,2]
[359941501,1746442243198,-151.0,0.00035,14]
[359941502,1746442243208,-151.0,0.00035,14]
[359941503,1746442243218,-151.0,0.00035,14]
[359941505,1746442243227,-151.0,0.00035,14]
[359941506,1746442243237,-151.0,0.00035,14]
[359941508,1746442243246,-151.0,0.00035,14]
[359941510,1746442243256,-151.0,0.00035,14]
[359941512,1746442243266,-151.0,0.00035,14]
[359941514,1746442243276,-151.0,0.00035,14]
[359941516,1746442243285,-151.0,0.00035,14]
[359941518,1746442243295,-363.797151,0.00035,14]
[359941520,1746442243304,-363.797151,0.00035,14]
[359941522,1746442243314,-151.0,0.00035,14]
[359941525,1746442243323,-231.808025,0.00035,14]
[359941528,1746442243333,-151.628884,0.00035,14]
[359941531,1746442243343,-151.0,0.00035,14]
[359941533,1746442243352,-151.0,0.00035,14]
[359941535,1746442243362,-1018.515784,0.00035,2]
[359941538,1746442243372,-644.430046,0.00035,14]
[359941540,1746442243381,-644.430046,0.00035,14]
[359941542,1746442243392,-151.0,0.00035,14]
[359941544,1746442243401,-151.0,0.00035,14]
[359941546,1746442243412,-156.939379,0.00035,14]
[359941548,1746442243422,-364.680102,0.00035,14]
[359941550,1746442243432,-364.680102,0.00035,14]
[359941552,1746442243442,-160.202265,0.00035,14]
[359941554,1746442243452,-151.0,0.00035,14]
[359941556,1746442243462,-151.0,0.00035,14]
[359941558,1746442243472,-151.0,0.00035,14]
[359941559,1746442243482,-160.0,0.00035,7]
[359941560,1746442243491,-3904.166782,0.00035,2]
[359941561,1746442243501,-3904.166782,0.00035,2]
[359941562,1746442243511,-151.0,0.00035,14]
[359941563,1746442243521,-225.777662,0.00035,14]
[359941564,1746442243531,-151.0,0.00035,14]
[359941565,1746442243540,-225.777662,0.00035,14]
[359941566,1746442243549,-151.0,0.00035,14]
[359941567,1746442243559,-1147.11588501,0.00035,7]
[359941568,1746442243569,-10424.8463,0.00035,15]
[359941569,1746442243579,-206.0,0.00035,120]
[359941570,1746442243589,-234.368266,0.00035,14]
[359941571,1746442243599,-16703.78230472,0.00035,24]
[359941630,1746442244272,-154.553854,0.00030293,7]
[359941632,1746442244283,-8162.21769528,0.00035,24]
[359941634,1746442244293,-221.688833,0.00035,2]
[359941636,1746442244302,-234.368266,0.00035,14]
[359941638,1746442244312,-221.688833,0.00035,2]
[359941640,1746442244322,-313.81875325,0.00035,7]
[359941643,1746442244331,-21232.57174238,0.00035,29]
[359941665,1746442244537,211.60384801,0.000269,16]
[359941904,1746442246761,-794.47653583,0.000269,16]
[359941911,1746442246814,-88.75601036,0.000269,16]
[359941913,1746442246824,-1094.83639414,0.00027383,17]
[359941915,1746442246833,-1094.83639414,0.00027866,17]
[359941917,1746442246843,-1094.83639414,0.00028348,18]
[359941919,1746442246852,-1094.83639414,0.00028831,19]
[359941921,1746442246863,-1094.83639414,0.00029314,20]
[359941923,1746442246874,-1094.83639414,0.00029797,21]
[359941925,1746442246884,-1094.83639414,0.00030279,22]
[359941927,1746442246893,-1094.83639414,0.00030762,23]
[359941928,1746442246902,-1094.83639414,0.00031245,24]
[359941930,1746442246914,-1094.83639414,0.00031728,25]
[359941933,1746442246924,-1094.83639414,0.0003221,26]
[359941934,1746442246935,-1094.83639414,0.00032693,27]
[359941937,1746442246946,-38401.01685344,0.00035,29]
[359941939,1746442246955,-151.0,0.00035,14]
[359941941,1746442246964,-151.0,0.00035,14]
[359941943,1746442246973,-484.572747,0.00035,14]
[359941945,1746442246982,-484.572747,0.00035,14]
[359941947,1746442246991,-151.0,0.00035,14]
[359941949,1746442247001,-151.0,0.00035,14]
[359941951,1746442247010,-201.927658,0.00035,14]
[359941953,1746442247021,-151.0,0.00035,14]
[359941955,1746442247031,-227.643313,0.00035,14]
[359941957,1746442247040,-160.0,0.00035009,4]
[359941959,1746442247049,-500.0,0.00035072,60]
[359941961,1746442247059,-151.0,0.000351,18]
[359941963,1746442247068,-2218.96,0.000351,7]
[359941965,1746442247077,-500.0,0.00035197,60]
[359941967,1746442247088,-1107.3,0.000352,30]
[359941969,1746442247098,-4749.68496691,0.0003526,2]
[359941971,1746442247108,-151.0,0.00035303,2]
[359941972,1746442247117,-5000.0,0.00035342,2]
[359941973,1746442247126,-975.03627542,0.00035382,2]
[359941974,1746442247136,-3000.0,0.000355,30]
[359941975,1746442247146,-151.0,0.000355,12]
[359941976,1746442247156,-2000.0,0.00035501,4]
[359941977,1746442247168,-179.08150384,0.00035506,2]
[359941978,1746442247177,-1000.0,0.00035534,60]
[359941979,1746442247187,-13599.9939421,0.00035585,3]
[359941980,1746442247196,-7704.90186599,0.00035585,3]
[359941981,1746442247205,-13599.9939421,0.00035585,3]
[359941982,1746442247214,-7704.90186599,0.00035585,3]
[359941983,1746442247223,-1000.0,0.00035589,3]
[359941984,1746442247232,-230.29671248,0.00035589,3]
[359941985,1746442247241,-3904.166782,0.00035595,2]
[359941986,1746442247250,-3904.166782,0.00035595,2]
[359941988,1746442247259,-151.0,0.00035595,14]
[359941990,1746442247269,-225.777662,0.00035595,14]
[359941992,1746442247278,-151.0,0.00035595,14]
[359941994,1746442247287,-225.777662,0.00035595,14]
[359941996,1746442247296,-151.0,0.00035595,14]
[359941998,1746442247305,-221.688833,0.00035595,2]
[359942000,1746442247317,-221.688833,0.00035595,2]
[359942002,1746442247327,-151.0,0.00035595,14]
[359942004,1746442247337,-1023.41637,0.000356,19]
[359942006,1746442247346,-364.680102,0.00035605,14]
[359942008,1746442247355,-364.680102,0.00035605,14]
[359942010,1746442247365,-151.0,0.00035605,14]
[359942012,1746442247374,-151.0,0.00035605,14]
[359942014,1746442247383,-151.0,0.00035605,14]
[359942016,1746442247393,-30819.607464,0.00035606,3]
[359942018,1746442247402,-151.0,0.00035606,14]
[359942020,1746442247412,-151.628884,0.00035606,14]
[359942023,1746442247422,-151.0,0.00035606,14]
[359942025,1746442247431,-644.430046,0.00035606,14]
[359942027,1746442247441,-644.430046,0.00035606,14]
[359942029,1746442247451,-151.0,0.00035606,14]
[359942031,1746442247460,-151.0,0.00035606,14]
[359942033,1746442247469,-364.680102,0.00035606,14]
[359942035,1746442247478,-364.680102,0.00035606,14]
[359942037,1746442247488,-151.0,0.00035606,14]
[359942039,1746442247497,-151.0,0.00035606,14]
[359942041,1746442247507,-204.612992,0.00035606,14]
[359942043,1746442247516,-409.95385558,0.00035615,10]
[359942045,1746442247526,-234.368266,0.00035615,14]
[359942047,1746442247536,-234.368266,0.00035615,14]
[359942049,1746442247545,-169.046858,0.00035615,14]
[359942051,1746442247554,-151.0,0.00035615,14]
[359942053,1746442247563,-151.0,0.00035616,14]
[359942055,1746442247572,-151.0,0.00035616,14]
[359942057,1746442247581,-151.0,0.00035616,14]
[359942059,1746442247591,-151.0,0.00035616,14]
[359942061,1746442247600,-151.0,0.00035616,14]
[359942063,1746442247610,-151.0,0.00035616,14]
[359942065,1746442247619,-156.257911,0.00035616,14]
[359942067,1746442247629,-186.1858671,0.00035616,14]
[359942069,1746442247638,-151.0,0.00035616,14]
[359942071,1746442247647,-153.251682,0.00035616,14]
[359942073,1746442247656,-151.0,0.00035616,14]
[359942075,1746442247665,-151.0,0.00035616,14]
[359942077,1746442247675,-151.0,0.00035616,14]
[359942079,1746442247684,-151.0,0.00035616,14]
[359942081,1746442247695,-151.0,0.00035616,14]
[359942083,1746442247705,-151.0,0.00035616,14]
[359942085,1746442247714,-400.0,0.00035616,14]
[359942087,1746442247724,-278.497364,0.00035616,14]
[359942089,1746442247734,-153.55827728,0.00035616,14]
[359942091,1746442247743,-400.0,0.00035616,14]
[359942093,1746442247752,-400.0,0.00035616,14]
[359942095,1746442247761,-401.67899492,0.00035616,14]
[359942097,1746442247771,-500.0,0.00035616,14]
[359942099,1746442247781,-505.00241426,0.00035616,14]
[359942101,1746442247790,-400.0,0.00035616,14]
[359942103,1746442247799,-402.63366468,0.00035616,14]
[359942105,1746442247808,-256.57951056,0.00035616,14]
[359942107,1746442247818,-400.0,0.00035616,14]
[359942109,1746442247827,-406.9331709,0.00035616,14]
[359942111,1746442247836,-400.0,0.00035616,14]
[359942113,1746442247845,-400.0,0.00035616,14]
[359942115,1746442247855,-400.0,0.00035616,14]
[359942117,1746442247864,-501.93023838,0.00035616,14]
[359942119,1746442247874,-400.0,0.00035616,14]
[359942121,1746442247886,-400.0,0.00035616,14]
[359942123,1746442247896,-400.0,0.00035616,14]
[359942125,1746442247907,-315.44902119,0.00035616,14]
[359942127,1746442247918,-400.0,0.00035616,14]
[359942129,1746442247928,-400.0,0.00035616,14]
[359942131,1746442247938,-400.0,0.00035616,14]
[359942133,1746442247948,-400.0,0.00035616,14]
[359942135,1746442247958,-400.0,0.00035616,14]
[359942137,1746442247968,-400.0,0.00035616,14]
[359942139,1746442247978,-204.55047067,0.00035616,14]
[359942141,1746442247988,-151.0,0.00035616,14]
[359942143,1746442247997,-205.54247979,0.00035616,14]
[359942145,1746442248007,-400.0,0.00035616,14]
[359942147,1746442248016,-400.0,0.00035616,14]
[359942149,1746442248026,-400.0,0.00035616,14]
[359942151,1746442248036,-400.0,0.00035616,14]
[359942153,1746442248045,-400.0,0.00035616,14]
[359942155,1746442248055,-208.83459303,0.00035616,2]
[359942157,1746442248064,-400.0,0.00035616,14]
[359942159,1746442248073,-400.0,0.00035616,14]
[359942161,1746442248083,-173.26062494,0.00035616,14]
[359942163,1746442248093,-400.0,0.00035616,14]
[359942165,1746442248102,-400.0,0.00035616,14]
[359942167,1746442248111,-400.0,0.00035616,14]
[359942169,1746442248121,-400.0,0.00035616,14]
[359942171,1746442248131,-509.71678436,0.00035616,14]
[359942173,1746442248140,-618.99,0.00035616,14]
[359942175,1746442248150,-400.0,0.00035616,14]
[359942177,1746442248159,-400.0,0.00035616,14]
[359942179,1746442248169,-400.0,0.00035616,14]
[359942181,1746442248179,-400.0,0.00035616,14]
[359942183,1746442248188,-400.0,0.00035616,14]
[359942185,1746442248198,-400.0,0.00035616,14]
[359942187,1746442248208,-400.0,0.00035616,14]
[359942189,1746442248218,-400.0,0.00035616,14]
[359942192,1746442248230,-400.0,0.00035616,14]
[359942194,1746442248239,-400.0,0.00035616,14]
[359942196,1746442248249,-400.0,0.00035616,14]
[359942198,1746442248258,-400.0,0.00035616,14]
[359942200,1746442248267,-400.0,0.00035616,14]
[359942202,1746442248277,-400.0,0.00035616,14]
[359942204,1746442248286,-403.45962298,0.00035616,14]
[359942206,1746442248296,-400.0,0.00035616,14]
[359942208,1746442248305,-400.0,0.00035616,14]
[359942210,1746442248314,-400.0,0.00035616,14]
[359942212,1746442248323,-400.0,0.00035616,14]
[359942214,1746442248332,-231.44414669,0.00035616,14]
[359942216,1746442248341,-151.0,0.00035616,14]
[359942218,1746442248351,-151.0,0.00035616,14]
[359942220,1746442248362,-161.446055,0.00035616,14]
[359942222,1746442248371,-400.0,0.00035616,14]
[359942224,1746442248380,-400.0,0.00035616,14]
[359942226,1746442248389,-400.0,0.00035616,14]
[359942228,1746442248399,-400.0,0.00035616,14]
[359942230,1746442248409,-151.0,0.00035616,14]
[359942232,1746442248419,-151.0,0.00035616,14]
[359942234,1746442248428,-400.0,0.00035616,14]
[359942236,1746442248439,-151.0,0.00035616,14]
[359942238,1746442248448,-151.0,0.00035616,14]
[359942240,1746442248458,-151.0,0.00035616,14]
[359942242,1746442248467,-400.0,0.00035616,14]
[359942244,1746442248476,-151.0,0.00035616,14]
[359942246,1746442248486,-151.0,0.00035616,14]
[359942248,1746442248496,-271.153695,0.00035616,14]
[359942250,1746442248506,-400.0,0.00035616,14]
[359942252,1746442248516,-151.0,0.00035616,2]
[359942254,1746442248526,-400.0,0.00035616,14]
[359942256,1746442248536,-500.0,0.00035616,2]
[359942258,1746442248545,-400.0,0.00035616,14]
[359942260,1746442248555,-151.07251495,0.00035616,2]
[359942262,1746442248564,-400.0,0.00035616,14]
[359942264,1746442248574,-200.08925429,0.00035616,2]
[359942266,1746442248583,-157.0,0.00035616,2]
[359942268,1746442248594,-500.0,0.00035616,2]
[359942270,1746442248603,-852.97,0.00035616,14]
[359942272,1746442248613,-170.10592825,0.00035616,14]
[359942274,1746442248623,-400.0,0.00035616,14]
[359942276,1746442248632,-151.0,0.00035616,2]
[359942278,1746442248642,-151.0,0.00035616,2]
[359942280,1746442248651,-400.0,0.00035616,14]
[359942282,1746442248662,-151.0,0.00035616,2]
[359942283,1746442248671,-151.0,0.00035616,14]
[359942286,1746442248681,-185.817685,0.00035616,14]
[359942288,1746442248691,-400.0,0.00035616,14]
[359942290,1746442248701,-151.0,0.00035616,2]
[359942292,1746442248711,-400.0,0.00035616,14]
[359942294,1746442248721,-400.0,0.00035616,14]
[359942296,1746442248732,-401.08209744,0.00035616,14]
[359942298,1746442248741,-400.0,0.00035616,14]
[359942300,1746442248751,-668.84,0.00035616,14]
[359942302,1746442248760,-400.0,0.00035616,14]
[359942304,1746442248769,-400.0,0.00035616,14]
[359942306,1746442248778,-400.0,0.00035616,14]
[359942308,1746442248789,-334.93929689,0.00035616,14]
[359942310,1746442248798,-400.0,0.00035616,14]
[359942312,1746442248808,-400.77978627,0.00035616,14]
[359942314,1746442248817,-400.0,0.00035616,14]
[359942316,1746442248826,-400.0,0.00035616,14]
[359942318,1746442248835,-400.0,0.00035616,14]
[359942332,1746442248963,-400.0,0.00035616,14]
[359942334,1746442248973,-400.0,0.00035616,14]
[359942336,1746442248983,-400.0,0.00035616,14]
[359942338,1746442248992,-400.0,0.00035616,14]
[359942340,1746442249001,-400.0,0.00035616,14]
[359942342,1746442249010,-363.797151,0.00035616,14]
[359942344,1746442249020,-363.797151,0.00035616,14]
[359942346,1746442249029,-400.0,0.00035616,14]
[359942348,1746442249040,-363.797151,0.00035616,14]
[359942350,1746442249050,-363.797151,0.00035616,14]
[359942352,1746442249060,-363.797151,0.00035616,14]
[359942354,1746442249069,-363.797151,0.00035616,14]
[359942356,1746442249079,-363.797151,0.00035616,14]
[359942358,1746442249088,-400.0,0.00035616,14]
[359942360,1746442249098,-363.797151,0.00035616,14]
[359942362,1746442249107,-363.797151,0.00035616,14]
[359942364,1746442249117,-363.797151,0.00035616,14]
[359942366,1746442249126,-363.797151,0.00035616,14]
[359942368,1746442249136,-363.797151,0.00035616,14]
[359942370,1746442249145,-450.26121172,0.00035616,14]
[359942372,1746442249154,-363.797151,0.00035616,14]
[359942374,1746442249164,-363.797156,0.00035616,14]